[Event "Bijnor Open 2024"]
[Site "Bijnor"]
[Date "2024.03.18"]
[Round "3.5"]
[White "Vinayak Singh Yadav"]
[Black "Sai Agni Jeevitesh, J."]
[Result "0-1"]
[ECO "C55"]
[WhiteElo "1696"]
[BlackElo "2285"]
[Annotator "TA"]
[PlyCount "148"]
[EventDate "2024.03.17"]
[EventCountry "IND"]
[SourceTitle "playchess.com"]
[Source "ChessBase"]
[SourceQuality "1"]
[TimeControl "5400+30"]

{[%evp 28,148,-33,-44,-50,-54,-57,-64,-12,-37,-7,-31,-11,-32,-18,-25,0,0,-12,-12,0,0,0,-20,0,0,0,0,0,0,0,0,0,-2,0,0,0,0,0,0,0,0,0,-31,-31,-54,-56,-43,-31,-57,-35,-119,-87,-72,-50,-58,-75,-277,-290,-253,-312,-297,-300,-272,-150,-285,-251,-400,-264,-320,-321,-785,-722,-881,-676,-864,-668,-1033,-879,-1056,-1051,-1012,-812,-1070,-1066,-1332,-1087,-1000,-764,-873,-631,-1076,-781,-1090,-1090,-1015,-949,-850,-747,-1948,-1752,-1852,-1813,-1705,-1236,-1786,-1569,-2426,-2299,-5281,-5181,-29956,-29962,-10810,-10765,-29972,-29974,-29983,-29984,-29984,-29985,-29992,-29993]} 1. e4 {[%emt 0:00:05]} e5 {[%emt 0:04:05]} 2. Nf3 {[%emt 0:00:24]} Nc6 {[%emt 0:00:07]} 3. Bc4 {[%emt 0:00:20]} Nf6 {[%emt 0:00:18]} 4. d3 {[%emt 0:00:31]} h6 {[%emt 0:01:37]} 5. c3 {[%emt 0:01:43]} d6 {[%emt 0:00:46]} 6. h3 {[%emt 0:04:54] C55: Zweispringerspiel.} g6 {[%emt 0:00:51]} 7. Be3 {[%emt 0:01:45]} Bg7 {[%emt 0:00:24]} 8. Nbd2 {[%emt 0:01:56]} O-O {[%emt 0:00:21]} 9. O-O {[%emt 0:02:14]} Na5 {[%emt 0:00:35]} 10. Bb3 {[%emt 0:09:45]} Nxb3 {[%emt 0:02:48]} 11. axb3 {[%emt 0:00:24]} b6 $146 {[%emt 0:01:47]} ({Predecessor:} 11... c5 12. d4 exd4 13. cxd4 Qe7 14. e5 dxe5 15. dxe5 Nd5 16. Re1 Be6 17. Ne4 Nxe3 18. Rxe3 {0-1 Szewczyk,M (2128)-Ladan,N (2260) Warsaw Maciei Memorial blitz 2023 (10)}) 12. d4 {[%emt 0:16:23]} Qe7 {[%emt 0:01:18]} 13. Re1 {[%emt 0:03:09]} Bb7 {[%emt 0:00:16]} 14. Qc2 {[%emt 0:00:54]} a5 {[%emt 0:02:00]} 15. Nh2 {[%emt 0:12:19]} Nh5 {[%emt 0:01:56]} 16. d5 {[%emt 0:04:04]} f5 {[%emt 0:00:52]} 17. f3 {[%emt 0:00:45]} fxe4 {[%emt 0:02:16]} (17... Qd7 $15) 18. fxe4 {[%emt 0:01:12]} Nf4 {[%emt 0:00:18]} 19. Bxf4 {[%emt 0:03:46]} Rxf4 {[%emt 0:00:41]} 20. Rf1 {[%emt 0:00:59]} h5 {[%emt 0:02:36]} 21. b4 {[%emt 0:03:47]} axb4 {[%emt 0:05:37]} 22. Rxa8+ {[%emt 0:00:45]} Bxa8 {[%emt 0:00:01]} 23. Ra1 {[%emt 0:01:04]} Rf8 {[%emt 0:01:22]} 24. cxb4 {[%emt 0:00:44]} Bh6 {[%emt 0:02:39]} 25. Ndf3 {[%emt 0:04:50]} Bb7 {[%emt 0:04:06]} 26. Ra7 {[%emt 0:01:46]} Be3+ {[%emt 0:04:10]} 27. Kf1 {[%emt 0:07:00]} Rb8 {[%emt 0:00:40]} 28. Ke2 {[%emt 0:00:49]} Bf4 {[%emt 0:00:15]} 29. Nf1 {[%emt 0:00:34]} Qd7 {[%emt 0:00:59]} 30. Qc4 {[%emt 0:05:57]} Qc8 {[%emt 0:03:44]} 31. b5 {[%emt 0:02:16]} Ra8 {[%emt 0:00:30]} 32. Rxa8 {[%emt 0:00:14]} Bxa8 {[%emt 0:00:02]} 33. Ne3 {[%emt 0:01:28]} Bb7 {[%emt 0:00:52]} 34. Nc2 {[%emt 0:00:24]} g5 {[%emt 0:02:21]} 35. Nb4 {[%emt 0:02:00]} g4 {[%emt 0:00:13]} 36. hxg4 {[%emt 0:00:56]} Qxg4 {[%emt 0:02:22]} 37. Kf1 {[%emt 0:01:06]} h4 {[%emt 0:00:42]} 38. Qe2 {[%emt 0:01:53]} (38. Qxc7 $2 h3 39. Qc2 (39. Qd8+ $2 Kf7 $19) 39... h2 40. Nxh2 Bxh2 $19) 38... Bc8 {[%emt 0:01:51]} 39. Ng1 {[%emt 0:02:10]} ({Vorzuziehen ist} 39. Na6 $1 $15) 39... Qg5 {[%emt 0:03:02]} 40. Nh3 {[%emt 0:01:39]} Qg3 {[%emt 0:01:19]} 41. Nxf4 {[%emt 0:00:49]} Qxf4+ {[%emt 0:00:27]} 42. Ke1 $2 {[%emt 0:00:54]} (42. Kg1 $17) 42... Bg4 $19 {[%emt 0:00:35]} 43. Qd3 {[%emt 0:00:48]} Qc1+ {[%emt 0:05:25]} 44. Kf2 {[%emt 0:00:07]} Qxb2+ {[%emt 0:00:29]} (44... Qc5+ 45. Qe3 Qxb4 46. Qg5+ Kf7 47. Qxg4 $11) 45. Nc2 {[%emt 0:00:17]} Bd7 {[%emt 0:00:38]} ({Günstiger ist} 45... Kf8 $19 {Und jetzt ...Ke8 wäre schön.} 46. Kg1 Ke8) 46. Qe2 {[%emt 0:01:05]} (46. Qc4 $17) 46... Kf8 {[%emt 0:02:02]} (46... Qxb5 47. Qh5 $11) 47. Kg1 {[%emt 0:00:33]} (47. Qc4 {war erzwungen.} Qc1 (47... Bxb5 48. Qxc7 Ke8 49. Kf3 $11) 48. Qxc7 Qd2+ (48... Bxb5 49. Qxd6+ Kf7 50. Qe6+ Kf8 51. Qf5+ Kg8 52. Qg4+ Kf8 53. Qc8+ Ke7 54. Qc7+ Kf8 55. Qd6+ Kf7 56. Qe6+ Kf8 57. Qf5+ Kg8 58. Qg4+ Kf7 59. Qf3+ Ke7 60. Ne3 $11) (48... Ke7 49. Ke2 $11) 49. Kg1) 47... Ke7 {[%emt 0:00:42]} (47... Qxb5 48. Qf2+ Ke8 49. Qxh4 $11) 48. Qf2 {[%emt 0:00:29]} Qc1+ {[%emt 0:00:33]} ({Minderwertig wäre} 48... Qxb5 49. Qxh4+ Ke8 50. Qh8+ Ke7 51. Qh4+ Kf7 52. Qh5+ Kf8 53. Kh2 $11) 49. Qe1 $2 {[%emt 0:00:29]} (49. Ne1 Qh6 (49... Bxb5 $2 50. Qxh4+ Kd7 51. Kh2 $19) 50. Nf3) 49... Qxe1+ $19 {[%emt 0:00:29]} ({Schlechter ist} 49... Qxc2 50. Qxh4+ Ke8 51. Qh8+ Ke7 (51... Kf7 52. Qh7+ Kf6 53. Qxd7 $11) 52. Qh4+ Ke8 53. Qh8+ Ke7 (53... Kf7 54. Qh7+ Kf6 55. Qh6+ Kf7 56. Qh5+ Kf8 57. Qh8+ Ke7 58. Qh4+ $11) 54. Qh4+ $11) 50. Nxe1 {[%emt 0:00:06]} Bxb5 {[%emt 0:00:01]} 51. Kf2 {[%emt 0:00:15]} Bd7 {[%emt 0:00:40]} 52. Nf3 {[%emt 0:00:27]} h3 {[%emt 0:00:01]} 53. gxh3 {[%emt 0:00:09]} Bxh3 {[%emt 0:00:03]} 54. Ke3 {[%emt 0:00:10]} Bd7 {[%emt 0:01:29]} 55. Kd3 {[%emt 0:00:15]} Kf6 {[%emt 0:01:42]} 56. Nd2 {[%emt 0:01:32]} Kg5 {[%emt 0:00:12]} 57. Ke3 {[%emt 0:00:06]} Kg4 {[%emt 0:00:10]} 58. Nc4 {[%emt 0:01:04]} Kg3 {[%emt 0:00:12]} 59. Nd2 {[%emt 0:00:36]} Bb5 {[%emt 0:00:22]} 60. Nf3 {[%emt 0:00:28]} Kg4 {[%emt 0:02:58]} 61. Nh2+ {[%emt 0:00:29]} Kg5 {[%emt 0:00:18]} 62. Nf3+ {[%emt 0:00:07]} Kf6 {[%emt 0:00:01]} 63. Nd2 {[%emt 0:00:46]} Ke7 {[%emt 0:00:05]} 64. Nf3 {[%emt 0:00:54]} Kd7 {[%emt 0:00:15]} 65. Kd2 {[%emt 0:00:13]} Bf1 {[%emt 0:00:36]} 66. Kc3 {[%emt 0:00:25]} c5 {[%emt 0:00:45]} 67. dxc6+ {[%emt 0:00:35]} Kxc6 {[%emt 0:00:02]} 68. Kb4 {[%emt 0:00:11]} Bd3 {[%emt 0:00:22]} 69. Nd2 {[%emt 0:00:13]} d5 {[%emt 0:00:11]} 70. Nf3 {[%emt 0:00:56]} dxe4 {[%emt 0:41:06]} (70... Bxe4 $2 71. Nxe5+ Kd6 72. Nf7+ Ke7 73. Ne5 $19) 71. Nxe5+ {[%emt 0:00:10]} Kd5 {[%emt 0:00:00]} 72. Ng4 {[%emt 0:00:36]} Kd4 {[%emt 0:00:00]} 73. Kb3 {[%emt 0:00:02]} e3 {[%emt 0:00:00]} 74. Nh2 {[%emt 0:00:44]} Be4 {[%emt 0:00:00]} 0-1

[Event "Bijnor Open 2024"]
[Site "Bijnor"]
[Date "2024.03.18"]
[Round "3.6"]
[White "Vignesh B"]
[Black "Sanyam Srivastava"]
[Result "0-1"]
[ECO "C28"]
[WhiteElo "2209"]
[BlackElo "1686"]
[Annotator "RC"]
[PlyCount "112"]
[EventDate "2024.03.17"]
[EventCountry "IND"]
[SourceTitle "playchess.com"]
[Source "ChessBase"]
[SourceQuality "1"]
[TimeControl "5400+30"]

1. e4 {[%emt 0:01:38]} e5 {[%emt 0:00:08]} 2. Bc4 {[%emt 0:00:06]} Nc6 {[%emt 0:00:39]} 3. d3 {[%emt 0:00:30]} Bc5 {[%emt 0:00:30]} 4. Nc3 {[%emt 0:00:58]} Nf6 {[%emt 0:02:58]} 5. h3 {[%emt 0:08:56]} d6 {[%emt 0:04:01]} 6. g4 {[%emt 0:09:00]} h6 {[%emt 0:05:25]} 7. Nge2 {[%emt 0:02:13]} Be6 {[%emt 0:06:59]} 8. Ng3 {[%emt 0:00:08]} d5 {[%emt 0:27:07]} 9. Bb5 {[%emt 0:00:40]} Qd7 {[%emt 0:07:16]} 10. Qf3 {[%emt 0:09:44]} a6 {[%emt 0:14:48]} 11. Bxc6 {[%emt 0:00:42]} Qxc6 {[%emt 0:00:22]} 12. Nf5 {[%emt 0:01:06]} Kf8 {[%emt 0:18:07]} 13. Bd2 {[%emt 0:05:44]} dxe4 {[%emt 0:04:42]} 14. dxe4 {[%emt 0:00:45]} Rd8 {[%emt 0:01:15]} 15. O-O-O {[%emt 0:02:56]} h5 {[%emt 0:01:22]} 16. g5 {[%emt 0:09:52]} Nd7 {[%emt 0:00:31]} 17. Be3 {[%emt 0:00:17]} g6 {[%emt 0:01:34]} 18. Nh4 {[%emt 0:07:25]} Kg7 {[%emt 0:00:18]} 19. Rd2 {[%emt 0:00:47]} Bb4 {[%emt 0:00:53]} 20. Rd3 {[%emt 0:00:53]} Bc4 {[%emt 0:00:28]} 21. Rd2 {[%emt 0:08:02]} Bxc3 {[%emt 0:00:29]} 22. bxc3 {[%emt 0:00:01]} Qa4 {[%emt 0:00:40]} 23. Kd1 {[%emt 0:00:43]} Qxa2 {[%emt 0:00:23]} 24. Ke1 {[%emt 0:00:01]} Qa1+ {[%emt 0:00:25]} 25. Rd1 {[%emt 0:00:01]} Qxc3+ {[%emt 0:00:21]} 26. Bd2 {[%emt 0:00:02]} Qxc2 {[%emt 0:01:00]} 27. Rc1 {[%emt 0:00:03]} Qa2 {[%emt 0:00:34]} 28. Qc3 {[%emt 0:05:40]} Nc5 {[%emt 0:00:25]} 29. Qxc4 {[%emt 0:00:15]} Qxd2+ {[%emt 0:00:26]} 30. Kf1 {[%emt 0:00:02]} Nd3 {[%emt 0:00:19]} 31. Rc2 {[%emt 0:00:11]} Qe1+ {[%emt 0:00:08]} 32. Kg2 {[%emt 0:00:02]} Nf4+ {[%emt 0:00:07]} 33. Kh2 {[%emt 0:00:01]} Qa5 {[%emt 0:00:50]} 34. Qxc7 {[%emt 0:00:09]} Qxc7 {[%emt 0:00:29]} 35. Rxc7 {[%emt 0:00:02]} Rd3 {[%emt 0:00:32]} 36. Rxb7 {[%emt 0:00:11]} Rxh3+ {[%emt 0:01:10]} 37. Kg1 {[%emt 0:00:01]} Ra3 {[%emt 0:00:13]} 38. Ng2 {[%emt 0:00:11]} Nh3+ {[%emt 0:00:29]} 39. Kh2 {[%emt 0:00:01]} Nxf2 {[%emt 0:00:23]} 40. Rf1 {[%emt 0:00:02]} Ng4+ {[%emt 0:00:18]} 41. Kg1 {[%emt 0:00:02]} Rf8 {[%emt 0:00:10]} 42. Ra7 {[%emt 0:00:20]} a5 {[%emt 0:00:14]} 43. Ne1 {[%emt 0:00:29]} a4 {[%emt 0:00:43]} 44. Nf3 {[%emt 0:00:03]} Ne3 {[%emt 0:00:55]} 45. Rf2 {[%emt 0:00:02]} Ra1+ {[%emt 0:00:21]} 46. Kh2 {[%emt 0:00:01]} Ng4+ {[%emt 0:00:06]} 47. Kg3 {[%emt 0:00:05]} Nxf2 {[%emt 0:00:05]} 48. Kxf2 {[%emt 0:00:03]} Re8 {[%emt 0:00:15]} 49. Kg2 {[%emt 0:00:10]} a3 {[%emt 0:00:04]} 50. Nd2 {[%emt 0:00:05]} Rb8 {[%emt 0:00:35]} 51. Nc4 {[%emt 0:00:01]} a2 {[%emt 0:00:16]} 52. Kh2 {[%emt 0:00:06]} Rbb1 {[%emt 0:00:16]} 53. Nd6 {[%emt 0:00:17]} Rh1+ {[%emt 0:00:07]} 54. Kg2 {[%emt 0:00:01]} Rag1+ {[%emt 0:00:06]} 55. Kf2 {[%emt 0:00:05]} Rf1+ {[%emt 0:00:11]} 56. Kg2 {[%emt 0:00:03]} a1=Q {[%emt 0:00:28]} 0-1

[Event "Bijnor Open 2024"]
[Site "Bijnor"]
[Date "2024.03.18"]
[Round "3.7"]
[White "Arushi Severin Helen D Silva"]
[Black "Mahindrakar Indrajeet"]
[Result "0-1"]
[ECO "A47"]
[WhiteElo "1694"]
[BlackElo "2136"]
[Annotator "RC"]
[PlyCount "210"]
[EventDate "2024.03.17"]
[EventCountry "IND"]
[SourceTitle "playchess.com"]
[Source "ChessBase"]
[SourceQuality "1"]
[TimeControl "5400+30"]

1. d4 {[%emt 0:00:05]} Nf6 {[%emt 0:05:00]} 2. Bf4 {[%emt 0:00:14]} b6 {[%emt 0:01:46]} 3. Nf3 {[%emt 0:01:50]} Bb7 {[%emt 0:00:06]} 4. Nbd2 {[%emt 0:02:04]} g6 {[%emt 0:00:40]} 5. c3 {[%emt 0:01:44]} Bg7 {[%emt 0:00:51]} 6. Qc2 {[%emt 0:03:28]} d5 {[%emt 0:02:34]} 7. e3 {[%emt 0:01:06]} O-O {[%emt 0:00:31]} 8. Bd3 {[%emt 0:05:29]} c5 {[%emt 0:01:04]} 9. Qb1 {[%emt 0:00:36]} Nc6 {[%emt 0:01:16]} 10. h3 {[%emt 0:03:45]} Nd7 {[%emt 0:03:17]} 11. O-O {[%emt 0:04:16]} e5 {[%emt 0:05:05]} 12. dxe5 {[%emt 0:02:55]} Ndxe5 {[%emt 0:00:17]} 13. Bxe5 {[%emt 0:01:25]} Nxe5 {[%emt 0:00:25]} 14. Nxe5 {[%emt 0:01:55]} Bxe5 {[%emt 0:00:43]} 15. Nf3 {[%emt 0:00:16]} Bc7 {[%emt 0:03:32]} 16. Be2 {[%emt 0:01:24]} Qd6 {[%emt 0:01:33]} 17. Rd1 {[%emt 0:00:52]} Rfe8 {[%emt 0:02:15]} 18. Qd3 {[%emt 0:07:37]} Rad8 {[%emt 0:01:33]} 19. Kf1 {[%emt 0:03:36]} Qf6 {[%emt 0:07:58]} 20. Qc2 {[%emt 0:01:19]} Bc8 {[%emt 0:02:26]} 21. Qa4 {[%emt 0:02:22]} Re7 {[%emt 0:16:24]} 22. Qh4 {[%emt 0:05:32]} Qxh4 {[%emt 0:10:58]} 23. Nxh4 {[%emt 0:00:09]} h5 {[%emt 0:01:42]} 24. Nf3 {[%emt 0:00:51]} Bb7 {[%emt 0:00:19]} 25. Rd2 {[%emt 0:01:30]} Bc6 {[%emt 0:01:32]} 26. a4 {[%emt 0:01:39]} Kg7 {[%emt 0:03:55]} 27. Bb5 {[%emt 0:01:21]} Bb7 {[%emt 0:00:22]} 28. Rad1 {[%emt 0:03:54]} Rh8 {[%emt 0:04:08]} 29. c4 {[%emt 0:04:31]} d4 {[%emt 0:05:03]} 30. exd4 {[%emt 0:03:01]} Bf4 {[%emt 0:02:07]} 31. Re2 {[%emt 0:00:48]} Rxe2 {[%emt 0:01:16]} 32. Kxe2 {[%emt 0:00:18]} a6 {[%emt 0:00:01]} 33. Bd7 {[%emt 0:00:11]} Rd8 {[%emt 0:00:50]} 34. dxc5 {[%emt 0:01:20]} bxc5 {[%emt 0:00:01]} 35. g3 {[%emt 0:04:11]} Bc7 {[%emt 0:01:26]} 36. Ne1 {[%emt 0:01:47]} Be5 {[%emt 0:00:57]} 37. a5 {[%emt 0:06:51]} Bd4 {[%emt 0:12:31]} 38. Ba4 {[%emt 0:00:28]} Rd6 {[%emt 0:00:02]} 39. Kf1 {[%emt 0:01:40]} Rf6 {[%emt 0:00:20]} 40. Rd2 {[%emt 0:00:48]} Bc8 {[%emt 0:00:41]} 41. Kg2 {[%emt 0:00:23]} Bb7+ {[%emt 0:00:35]} 42. Kf1 {[%emt 0:00:42]} Be4 {[%emt 0:01:03]} 43. Bc2 {[%emt 0:01:36]} Bc6 {[%emt 0:00:43]} 44. Bd1 {[%emt 0:01:09]} Be5 {[%emt 0:00:46]} 45. Kg1 {[%emt 0:00:53]} Bc7 {[%emt 0:00:04]} 46. Ng2 {[%emt 0:01:40]} Bxa5 {[%emt 0:00:23]} 47. Rd3 {[%emt 0:00:21]} Be4 {[%emt 0:00:29]} 48. Rd7 {[%emt 0:00:26]} Bf5 {[%emt 0:00:47]} 49. Rd5 {[%emt 0:01:01]} Be6 {[%emt 0:01:48]} 50. Re5 {[%emt 0:00:27]} Bc7 {[%emt 0:00:34]} 51. Rg5 {[%emt 0:00:22]} Bxh3 {[%emt 0:00:15]} 52. Ne3 {[%emt 0:00:22]} Bd6 {[%emt 0:00:18]} 53. Rd5 {[%emt 0:02:58]} Bc8 {[%emt 0:00:15]} 54. Rd2 {[%emt 0:00:24]} Be5 {[%emt 0:00:31]} 55. Nd5 {[%emt 0:00:48]} Rd6 {[%emt 0:00:16]} 56. Kg2 {[%emt 0:01:28]} a5 {[%emt 0:00:14]} 57. b3 {[%emt 0:00:25]} Bb7 {[%emt 0:01:01]} 58. Bf3 {[%emt 0:00:12]} Bd4 {[%emt 0:01:00]} 59. Ra2 {[%emt 0:01:32]} Bxd5 {[%emt 0:00:52]} 60. Bxd5 {[%emt 0:00:13]} Rf6 {[%emt 0:00:30]} 61. f3 {[%emt 0:01:37]} Ra6 {[%emt 0:00:18]} 62. f4 {[%emt 0:01:39]} Ra7 {[%emt 0:00:18]} 63. Re2 {[%emt 0:00:27]} Kf6 {[%emt 0:00:30]} 64. Bc6 {[%emt 0:00:18]} Ra6 {[%emt 0:00:27]} 65. Bb5 {[%emt 0:00:09]} Rd6 {[%emt 0:00:13]} 66. Kf3 {[%emt 0:01:05]} Bc3 {[%emt 0:00:22]} 67. Ba4 {[%emt 0:00:36]} Bd2 {[%emt 0:00:12]} 68. Re5 {[%emt 0:01:35]} Bb4 {[%emt 0:00:33]} 69. Rd5 {[%emt 0:00:09]} Re6 {[%emt 0:00:04]} 70. Rd1 {[%emt 0:00:04]} Bc3 {[%emt 0:00:19]} 71. Rd5 {[%emt 0:00:10]} Bd4 {[%emt 0:00:09]} 72. Rd7 {[%emt 0:00:46]} Re3+ {[%emt 0:00:15]} 73. Kg2 {[%emt 0:00:07]} Re2+ {[%emt 0:00:11]} 74. Kh3 {[%emt 0:01:06]} Bg1 {[%emt 0:03:02]} 75. g4 {[%emt 0:00:19]} Rh2+ {[%emt 0:00:24]} 76. Kg3 {[%emt 0:00:08]} h4+ {[%emt 0:00:07]} 77. Kf3 {[%emt 0:00:07]} Rf2+ {[%emt 0:00:42]} 78. Ke4 {[%emt 0:00:42]} h3 {[%emt 0:00:06]} 79. Rd3 {[%emt 0:00:35]} h2 {[%emt 0:00:21]} 80. Rh3 {[%emt 0:00:05]} Re2+ {[%emt 0:00:58]} 81. Kd5 {[%emt 0:00:11]} Re3 {[%emt 0:00:31]} 82. Rh4 {[%emt 0:00:11]} Rf3 {[%emt 0:00:37]} 83. g5+ {[%emt 0:00:58]} Kg7 {[%emt 0:00:01]} 84. Ke4 {[%emt 0:00:07]} Re3+ {[%emt 0:00:17]} 85. Kd5 {[%emt 0:00:09]} Rg3 {[%emt 0:01:06]} 86. Ke4 {[%emt 0:00:19]} f5+ {[%emt 0:00:39]} 87. gxf6+ {[%emt 0:00:27]} Kxf6 {[%emt 0:00:01]} 88. Rh6 {[%emt 0:00:11]} Re3+ {[%emt 0:00:16]} 89. Kd5 {[%emt 0:00:14]} Kf5 {[%emt 0:00:09]} 90. Rh4 {[%emt 0:00:22]} Rd3+ {[%emt 0:01:04]} 91. Kc6 {[%emt 0:00:10]} Rd4 {[%emt 0:00:37]} 92. Kc7 {[%emt 0:00:50]} g5 {[%emt 0:00:16]} 93. Rh8 {[%emt 0:00:34]} Rxf4 {[%emt 0:00:47]} 94. Bc6 {[%emt 0:00:14]} Ke5 {[%emt 0:00:13]} 95. Kb6 {[%emt 0:00:12]} Rf6 {[%emt 0:00:15]} 96. Kb5 {[%emt 0:00:52]} Rxc6 {[%emt 0:00:10]} 97. Kxc6 {[%emt 0:00:05]} g4 {[%emt 0:00:09]} 98. Kb5 {[%emt 0:00:04]} g3 {[%emt 0:00:03]} 99. Re8+ {[%emt 0:00:06]} Kd6 {[%emt 0:00:12]} 100. Rh8 {[%emt 0:00:13]} g2 {[%emt 0:00:15]} 101. Kxa5 {[%emt 0:00:05]} h1=Q {[%emt 0:00:12]} 102. Rxh1 {[%emt 0:00:09]} gxh1=Q {[%emt 0:04:18]} 103. Kb5 {[%emt 0:00:05]} Qb7+ {[%emt 0:00:00]} 104. Ka5 {[%emt 0:00:07]} Kc6 {[%emt 0:01:00]} 105. b4 {[%emt 0:00:06]} Qa7# {[%emt 0:00:00]} 0-1

[Event "Bijnor Open 2024"]
[Site "Bijnor"]
[Date "2024.03.18"]
[Round "3.8"]
[White "Balkishan, A.."]
[Black "Mahendran, T.."]
[Result "1-0"]
[ECO "D15"]
[WhiteElo "2108"]
[BlackElo "1681"]
[Annotator "RC"]
[PlyCount "87"]
[EventDate "2024.03.17"]
[EventCountry "IND"]
[SourceTitle "playchess.com"]
[Source "ChessBase"]
[SourceQuality "1"]
[TimeControl "5400+30"]

1. c4 {[%emt 0:01:33]} c6 {[%emt 0:00:06]} 2. Nc3 {[%emt 0:00:08]} Nf6 {[%emt 0:00:07]} 3. d4 {[%emt 0:00:32]} d5 {[%emt 0:00:13]} 4. Nf3 {[%emt 0:00:09]} h6 {[%emt 0:00:33]} 5. Bf4 {[%emt 0:00:15]} e6 {[%emt 0:00:53]} 6. e3 {[%emt 0:00:06]} Bd6 {[%emt 0:00:36]} 7. Ne5 {[%emt 0:00:45]} dxc4 {[%emt 0:00:45]} 8. Bxc4 {[%emt 0:00:16]} b5 {[%emt 0:01:12]} 9. Bd3 {[%emt 0:00:12]} Bb7 {[%emt 0:00:02]} 10. O-O {[%emt 0:00:37]} Qe7 {[%emt 0:00:29]} 11. Rc1 {[%emt 0:01:01]} Nbd7 {[%emt 0:00:19]} 12. Qf3 {[%emt 0:17:07]} Bxe5 {[%emt 0:01:24]} 13. dxe5 {[%emt 0:00:06]} Nd5 {[%emt 0:00:23]} 14. Ne4 {[%emt 0:00:23]} O-O {[%emt 0:00:16]} 15. Nd6 {[%emt 0:03:32]} N7b6 {[%emt 0:02:09]} 16. Rfd1 {[%emt 0:01:20]} Rad8 {[%emt 0:00:07]} 17. Bb1 {[%emt 0:01:58]} f5 {[%emt 0:00:34]} 18. e4 {[%emt 0:04:48]} fxe4 {[%emt 0:00:43]} 19. Qxe4 {[%emt 0:00:15]} g5 {[%emt 0:00:21]} 20. Qg6+ {[%emt 0:01:50]} Qg7 {[%emt 0:00:15]} 21. Qxe6+ {[%emt 0:02:08]} Kh8 {[%emt 0:00:02]} 22. Bg3 {[%emt 0:00:15]} Bc8 {[%emt 0:01:18]} 23. Nxc8 {[%emt 0:00:20]} Nxc8 {[%emt 0:01:30]} 24. Rxc6 {[%emt 0:01:04]} Nf4 {[%emt 0:01:45]} 25. Qxh6+ {[%emt 0:00:25]} Qxh6 {[%emt 0:00:03]} 26. Rxh6+ {[%emt 0:00:10]} Kg7 {[%emt 0:00:16]} 27. Rh7+ {[%emt 0:00:07]} Kg8 {[%emt 0:00:01]} 28. Rdd7 {[%emt 0:00:31]} Ne6 {[%emt 0:00:42]} 29. Bc2 {[%emt 0:00:16]} Nb6 {[%emt 1:27:56]} 30. Rxd8 {[%emt 1:03:21]} Rxd8 {[%emt 0:00:00]} 31. h4 {[%emt 0:00:00]} Rd2 {[%emt 0:00:00]} 32. Be4 {[%emt 0:00:00]} Re2 {[%emt 0:00:00]} 33. Bd3 {[%emt 0:00:00]} Rd2 {[%emt 0:00:00]} 34. Rxa7 {[%emt 0:00:00]} Rxd3 {[%emt 0:00:00]} 35. Ra6 {[%emt 0:00:00]} gxh4 {[%emt 0:00:00]} 36. Bxh4 {[%emt 0:00:00]} Nc4 {[%emt 0:00:00]} 37. Rxe6 {[%emt 0:00:00]} Nxb2 {[%emt 0:00:00]} 38. Rb6 {[%emt 0:00:00]} Rd5 {[%emt 0:00:00]} 39. e6 {[%emt 0:00:00]} Re5 {[%emt 0:00:00]} 40. Bf6 {[%emt 0:00:00]} Re1+ {[%emt 0:00:00]} 41. Kh2 {[%emt 0:00:00]} Nc4 {[%emt 0:00:00]} 42. Rb8+ {[%emt 0:00:00]} Kh7 {[%emt 0:00:00]} 43. e7 {[%emt 0:00:00]} Nd6 {[%emt 0:00:00]} 44. Rd8 {[%emt 0:00:00]} 1-0

[Event "Bijnor Open 2024"]
[Site "Bijnor"]
[Date "2024.03.18"]
[Round "3.9"]
[White "Singh, Arvinder Preet"]
[Black "Srivardhan Reddy Devareddy"]
[Result "1-0"]
[ECO "C11"]
[WhiteElo "2030"]
[BlackElo "1662"]
[Annotator "RC"]
[PlyCount "45"]
[EventDate "2024.03.17"]
[EventCountry "IND"]
[SourceTitle "playchess.com"]
[Source "ChessBase"]
[SourceQuality "1"]
[TimeControl "5400+30"]

1. e4 {[%emt 0:00:04]} e6 {[%emt 0:03:06]} 2. d4 {[%emt 0:00:08]} d5 {[%emt 0:00:03]} 3. Nc3 {[%emt 0:00:09]} Nf6 {[%emt 0:00:39]} 4. e5 {[%emt 1:32:09]} Nfd7 {[%emt 0:00:14]} 5. f4 {[%emt 0:00:00]} c5 {[%emt 0:00:42]} 6. Nf3 {[%emt 0:00:00]} Nc6 {[%emt 0:00:09]} 7. Ne2 {[%emt 0:00:00]} Be7 {[%emt 0:00:55]} 8. c3 {[%emt 0:00:00]} O-O {[%emt 0:00:05]} 9. a3 {[%emt 0:00:00]} f6 {[%emt 0:04:48]} 10. b4 {[%emt 0:00:00]} cxd4 {[%emt 0:03:18]} 11. cxd4 {[%emt 0:00:00]} fxe5 {[%emt 0:04:47]} 12. fxe5 {[%emt 0:00:00]} Nb6 {[%emt 0:02:38]} 13. Neg1 {[%emt 0:00:00]} Bd7 {[%emt 0:09:05]} 14. Bd3 {[%emt 0:00:00]} Rc8 {[%emt 0:06:01]} 15. h4 {[%emt 0:00:00]} Nb8 {[%emt 0:02:27]} 16. Bxh7+ {[%emt 0:00:00]} Kxh7 {[%emt 0:00:08]} 17. Ng5+ {[%emt 0:00:00]} Kg8 {[%emt 0:01:56]} 18. Qh5 {[%emt 0:00:00]} Bxg5 {[%emt 0:01:14]} 19. hxg5 {[%emt 0:00:00]} Qc7 {[%emt 0:09:40]} 20. Qh8+ {[%emt 0:00:00]} Kf7 {[%emt 0:02:22]} 21. g6+ {[%emt 0:00:00]} Ke7 {[%emt 0:00:43]} 22. Bg5+ {[%emt 0:00:00]} Rf6 {[%emt 0:00:20]} 23. Qxg7+ {[%emt 0:00:00]} 1-0